Cogmind - Beta 10.2 @@@ ROGUE MODE // 2021.01.23 @ 14:42:24 Player: CrossedViper Result: Destroyed by Enhanced Grunt with Neutron Cannon Performance ------------- Evolutions (3) 1500 Regions Visited (14) 2800 Robots Destroyed (252) 1260 Value Destroyed (7471) 7471 Prototype IDs (22) 440 Alien Tech Used (0) 0 Bonus (1451) 1451 TOTAL SCORE: 14922 Bonus ------- High Alert Combat Kills 1007 Follower Combat Kills 276 Met Data Miner 300 Friendly Fire -132 Cogmind --------- Core Integrity 0/700 Matter 132/300 Energy 2/325 System Corruption 1% Temperature Cool (6) Movement Walking (120) Location -7/Data Miner Parts ------- > --- POWER (1) -------- Antimatter Reactor > --- PROPULSION (2) --- Enhanced Flexi-carbon Leg > --- UTILITY (6) ------ Coolant Injector > --- WEAPON (4) ------- (None) > --- INVENTORY (4) ---- (None) Peak State ------------ > --- POWER ------------ Antimatter Reactor > --- PROPULSION ------- Heavy Treads > --- UTILITY ---------- Improved Cooling System Improved Cooling System Improved Propulsion Shielding Hardened Medium Armor Plating Hardened Medium Armor Plating Advanced Hacking Suite > --- WEAPON ----------- Beamcaster Beamcaster Beamcaster Beamcaster > --- INVENTORY -------- Antimatter Reactor Damper Plating [Rating: 64] Favorites ----------- Power Cooled Ion Engine Engine Cooled Ion Engine Power Core Enhanced Nuclear Core Reactor Antimatter Reactor Propulsion Light Treads Treads Light Treads Leg Aluminum Leg Utility Large Storage Unit Device Improved Cooling System Storage Large Storage Unit Processor Salvage Targeting Computer Hackware Advanced Hacking Suite Protection Hardened Medium Armor Plating Weapon Beamcaster Energy Gun Beamcaster Energy Cannon Plasma Cannon Ballistic Gun Improved Assault Rifle Ballistic Cannon Battle Cannon Launcher Grenade Launcher Slashing Weapon Katana Build | -11 -10 -10 -9 -9 -9 -8 -8 -8 -7 -7 -7 -7 -7 -7 ------- Run | Scr Mat Min Mat Min Exi Min Mat Sto Fac Was Fac Low Low Dat Slots Evolved 6 | . . . 2 . . . 2 . 2 . . . . . Power . | . . . . . . . . . . . . . . . Propulsion . | . . . . . . . . . . . . . . . Utility 4 | . . . 2 . . . . . 2 . . . . . Weapon 2 | . . . . . . . 2 . . . . . . . Parts Attached 177 | . 8 . 26 9 . 3 27 40 18 26 . . 9 11 Power 12 | . . . 1 1 . . 2 4 1 2 . . . 1 Engine 8 | . . . 1 1 . . 2 4 . . . . . . Core 1 | . . . . . . . . . 1 . . . . . Reactor 3 | . . . . . . . . . . 2 . . . 1 Propulsion 28 | . 3 . 4 2 . . 8 6 1 2 . . . 2 Treads 26 | . 3 . 4 2 . . 8 6 1 2 . . . . Leg 2 | . . . . . . . . . . . . . . 2 Wheel . | . . . . . . . . . . . . . . . Hover . | . . . . . . . . . . . . . . . Flight . | . . . . . . . . . . . . . . . Utility 56 | . 4 . 13 2 . . 6 6 10 10 . . 4 1 Device 8 | . . . 1 . . . . . 2 3 . . 2 . Storage 4 | . 2 . . . . . . 1 1 . . . . . Processor 3 | . . . . . . . . . 3 . . . . . Hackware 1 | . . . . . . . . . . 1 . . . . Protection 40 | . 2 . 12 2 . . 6 5 4 6 . . 2 1 Artifact . | . . . . . . . . . . . . . . . Weapon 81 | . 1 . 8 4 . 3 11 24 6 12 . . 5 7 Energy Gun 6 | . . . . . . . . . . 4 . . 1 1 Energy Cannon 5 | . . . . . . . 1 2 . 1 . . . 1 Ballistic Gun 54 | . . . 7 2 . 1 6 18 6 7 . . 3 4 Ballistic Cannon 2 | . . . . 1 . . 1 . . . . . . . Launcher 11 | . 1 . 1 1 . 2 2 2 . . . . 1 1 Special Weapon . | . . . . . . . . . . . . . . . Impact Weapon . | . . . . . . . . . . . . . . . Slashing Weapon 3 | . . . . . . . 1 2 . . . . . . Piercing Weapon . | . . . . . . . . . . . . . . . Special Melee Weapon . | . . . . . . . . . . . . . . . Unidentified Prototypes 8 | . . . 2 . . . 1 3 1 . . . . 1 Parts Lost 50 | . . . 3 . . 2 15 . . 10 . . 3 17 Power 4 | . . . . . . . 2 . . 1 . . . 1 Propulsion 7 | . . . 1 . . . 3 . . 1 . . . 2 Utility 12 | . . . . . . . 3 . . 2 . . 1 6 Weapon 27 | . . . 2 . . 2 7 . . 6 . . 2 8 Highest Loss Streak 17 | . . . 1 . . 1 6 . . 7 . . 2 17 Average Slot Usage (%) 93 | . 99 100 99 100 100 94 95 89 97 70 92 92 91 77 Engine 6 | . 14 14 11 11 11 11 8 8 2 . . . . . Reactor 1 | . . . . . . . . . . 5 7 7 7 5 Treads 16 | . 27 28 21 22 22 22 17 18 15 7 7 7 7 5 Device 4 | . . . . . . . . . 3 9 15 15 14 14 Storage 14 | . 14 28 22 22 22 22 18 18 15 1 . . . . Processor 1 | . . . . . . . . . 11 4 . . . . Protection 18 | . 13 . 22 22 22 22 17 14 11 8 30 30 30 22 Energy Gun 5 | . . . . . . . . . . 22 30 30 9 4 Ballistic Gun 17 | . 14 14 21 16 11 6 22 26 30 4 . . 19 19 Ballistic Cannon 1 | . . . . 3 11 3 3 . . . . . . . Launcher 2 | . 13 14 . 2 . 7 3 . . . . . . . Naked Turns 3 | . . . . . . . . . . 3 . . . . Heaviest Build 92 | 11 41 41 54 57 52 57 84 80 92 83 66 66 77 74 Greatest Support 70 | 20 40 40 40 40 40 40 40 40 40 70 70 70 70 70 Greatest Overweight (x) 3 | . 1 1 1 1 1 1 3 2 2 1 . . 1 1 Average Overweight (x) . | . . 1 1 1 1 1 1 1 1 . . . . . Largest Inventory Capacity 18 | . 16 16 16 16 16 16 16 18 18 18 4 4 4 4 Average Capacity 12 | . 9 16 16 16 16 16 16 16 17 5 4 4 4 4 Most Carried 18 | . 16 16 16 16 16 16 16 18 18 18 4 4 4 4 Average Carried 12 | . 7 16 15 15 16 15 15 15 17 5 4 3 3 3 Final Capacity 18 | 6 16 16 16 16 16 16 16 18 18 4 4 4 4 4 Final Carried 18 | 6 16 16 16 16 16 14 14 18 18 4 4 4 4 . Class Distribution -------------------- 35% | Scavenger-Tank 33% | Mutant 14% | Scavenger-Mutant 8% | Tank 3% | Derelict-Tank Dominant Class ---------------- Mutant | -10/Materials Mutant | -10/Mines Scavenger-Mutant | -9/Materials Scavenger-Mutant | -9/Mines Mutant | -9/Exiles Mutant | -8/Mines Scavenger-Tank | -8/Materials Tank | -8/Storage Scavenger-Tank | -7/Factory Scavenger-Tank | -7/Waste Scavenger-Tank | -7/Factory Scavenger-Tank | -7/Lower Caves Scavenger-Tank | -7/Lower Caves Derelict-Tank | -7/Data Miner Resources | -11 -10 -10 -9 -9 -9 -8 -8 -8 -7 -7 -7 -7 -7 -7 ----------- Run | Scr Mat Min Mat Min Exi Min Mat Sto Fac Was Fac Low Low Dat Matter Collected 5802 | 200 82 298 1012 211 . 141 1260 819 775 620 . . 384 . Remotely . | . . . . . . . . . . . . . . . Salvage Created 9763 | . 174 . 1916 99 . 229 1895 1226 1228 1610 12 51 1113 210 Parts 561 | . 24 . 157 6 . 21 126 68 81 26 . 1 37 14 Haulers Intercepted 14 | . 1 . 3 . . . 3 4 3 . . . . . Recyclers Shooed 8 | . 2 . 1 . . 1 . 1 3 . . . . . Parts Field Recycled . | . . . . . . . . . . . . . . . Retrieved Matter . | . . . . . . . . . . . . . . . Parts Self-Destructed 42 | . . . . . . . . . . . . 11 31 . Prevented 8 | . . . . . . . . . . . . 1 7 . Kills | -11 -10 -10 -9 -9 -9 -8 -8 -8 -7 -7 -7 -7 -7 -7 ------- Run | Scr Mat Min Mat Min Exi Min Mat Sto Fac Was Fac Low Low Dat Combat Hostiles Destroyed 177 | . 9 . 37 10 . 16 39 18 17 5 1 1 22 2 Melee 3 | . . . . . . . 2 1 . . . . . . Guns 98 | . . . 29 1 . . 18 13 17 5 1 1 11 2 Cannons 7 | . . . . . . . 5 2 . . . . . . AOE 68 | . 9 . 8 9 . 16 14 2 . . . . 10 . Classes Destroyed 17 | . 9 . 3 . . . 2 . 1 1 . . 1 . Worker 22 | . 2 . 10 . . . 2 3 5 . . . . . Builder 12 | . 1 . 5 . . 1 1 2 2 . . . . . Tunneler 6 | . . . 3 . . 2 1 . . . . . . . Hauler 14 | . 1 . 3 . . . 3 4 3 . . . . . Recycler 9 | . 1 . 2 . . . 3 2 1 . . . . . Mechanic 1 | . 1 . . . . . . . . . . . . . Operator 5 | . 1 . 1 . . . 3 . . . . . . . Watcher 6 | . 1 . 4 . . . 1 . . . . . . . Swarmer 43 | . 3 . 11 8 . 9 4 2 . . . . 6 . Grunt 82 | . 6 . 17 2 . 6 21 9 8 . . 1 12 . Brawler 1 | . . . . . . . 1 . . . . . . . Duelist 2 | . . . 1 . . 1 . . . . . . . . Sentry 33 | . . . 8 . . . 11 7 3 . 1 . 3 . Hunter 4 | . . . . . . . 2 . 2 . . . . . Programmer 4 | . . . . . . . . . 4 . . . . . Behemoth 1 | . . . . . . . . . . . . . 1 . Compactor 5 | . . . . . . . . . . 5 . . . . Enhanced Grunt 2 | . . . . . . . . . . . . . . 2 Best Kill Streak 18 | . 4 . 18 4 . 4 14 6 8 2 1 1 12 2 Combat Bots Only 12 | . 3 . 5 4 . 4 7 4 3 2 1 1 12 2 Max Kills in Single Turn 6 | . 2 . 3 3 . 3 6 4 3 1 1 1 5 1 Gunslinging 1 | . . . 1 . . . . 1 . . . . . . Exploded 5 | . 2 . 3 3 . 3 4 2 . . . . 5 . Melee 1 | . . . . . . . 1 1 . . . . . . Uniques/NPCs Destroyed . | . . . . . . . . . . . . . . . Combat | -11 -10 -10 -9 -9 -9 -8 -8 -8 -7 -7 -7 -7 -7 -7 -------- Run | Scr Mat Min Mat Min Exi Min Mat Sto Fac Was Fac Low Low Dat Damage Taken 13166 | . 189 . 1542 225 . 682 3010 774 813 2155 17 57 1082 2620 Core 1228 | . 17 . 120 26 . 59 256 40 72 88 . . 73 477 Absorbed by Shields . | . . . . . . . . . . . . . . . Reduced by Siege Mode 214 | . . . . . . . . . . 78 . . 6 130 Core Remaining (%) 71 | 100 . 93 . . . 48 . 46 . . . . . . Volleys Fired 500 | . 30 . 130 12 . 21 97 48 46 52 1 5 40 18 Largest 4 | . 1 . 2 2 . 2 4 4 4 4 4 4 4 4 Hottest 300 | . 30 . 46 46 . 59 149 92 97 300 300 300 253 169 Shots Fired 1225 | . 30 . 253 17 . 28 251 153 175 118 4 19 137 40 Gun 1059 | . . . 248 10 . 7 176 140 175 114 4 19 133 33 Cannon 73 | . . . . . . 5 53 11 . 4 . . . . Launcher 93 | . 30 . 5 7 . 16 22 2 . . . . 4 7 Special . | . . . . . . . . . . . . . . . Kinetic 1016 | . . . 248 10 . 12 221 140 175 110 . . 72 28 Thermal 116 | . . . . . . . 8 11 . 8 4 19 61 5 Explosive 82 | . 30 . 5 7 . 16 22 2 . . . . . . Electromagnetic 11 | . . . . . . . . . . . . . 4 7 Robot Hit Streak 57 | . 9 . 17 3 . 7 18 14 31 57 2 7 21 37 Robot Miss Streak 10 | . 3 . 5 2 . 2 4 3 3 3 . 3 10 2 Penetration Max . | . . . . . . . . . . . . . . . Secondary Targets 9 | . . . 2 . . . 1 2 1 1 . . 1 1 Max Gunslinging Chain 1 | . . . 1 . . . 1 1 1 1 . . 1 1 Shots Hit Robots 856 | . 9 . 174 7 . 14 177 95 128 110 1 11 98 32 Core Hits 515 | . 36 . 93 11 . 36 110 54 65 20 2 2 60 26 Critical Hits 8 | . . . . . . . 1 1 2 3 . . . 1 Critical Kills 3 | . . . . . . . . 1 . 2 . . . . Critical Parts Destroyed 4 | . . . . . . . 1 . 2 1 . . . . Melee Attacks 17 | . . . . . . . 9 8 . . . . . . Impact . | . . . . . . . . . . . . . . . Slashing 17 | . . . . . . . 9 8 . . . . . . Piercing . | . . . . . . . . . . . . . . . Sneak Attacks 1 | . . . . . . . 1 . . . . . . . Combat Hostiles . | . . . . . . . . . . . . . . . Follow-up Attacks . | . . . . . . . . . . . . . . . Damage Inflicted 21918 | . 1410 18 3031 634 . 1845 5020 1928 2646 1908 62 209 2331 876 Guns 11884 | . . . 2389 27 . 35 1834 1320 1852 1827 62 209 1785 544 Cannons 775 | . . . . . . 45 523 126 . 81 . . . . Explosions 8629 | . 1393 . 575 606 . 1714 2274 406 783 . . . 546 332 Melee 425 | . . . . . . . 359 66 . . . . . . Ramming 205 | . 17 18 67 1 . 51 30 10 11 . . . . . Kinetic 11059 | . . . 2389 27 . 80 2273 1320 1852 1761 . . 877 480 Thermal 1600 | . . . . . . . 84 126 . 147 62 209 908 64 Explosive 7656 | . 1393 . 575 606 . 1714 2274 406 688 . . . . . Electromagnetic 973 | . . . . . . . . . 95 . . . 546 332 Impact . | . . . . . . . . . . . . . . . Slashing 425 | . . . . . . . 359 66 . . . . . . Piercing . | . . . . . . . . . . . . . . . Highest Corruption 2 | . . . 2 2 2 2 . . 1 1 1 1 1 1 Average Corruption 1 | . . . 1 2 2 2 . . 1 1 1 1 1 1 Corruption Purged . | . . . . . . . . . . . . . . . Effects 73 | . . . 22 13 6 12 . . 5 3 . 4 8 . Message Errors 25 | . . . 3 7 2 3 . . 2 2 . 3 3 . Heat Flow Errors 7 | . . . 2 1 1 3 . . . . . . . . Energy Discharges 13 | . . . 4 2 1 4 . . 2 . . . . . Data Loss (minor) 12 | . . . 5 1 2 1 . . 1 . . . 2 . Targeting Errors 14 | . . . 7 2 . 1 . . . 1 . . 3 . Weapon Failures 2 | . . . 1 . . . . . . . . 1 . . Overload Shots . | . . . . . . . . . . . . . . . Overflow Damage 335 | . 31 . 5 . . 127 32 9 131 . . . . . Projectiles . | . . . . . . . . . . . . . . . Explosions 329 | . 31 . 5 . . 127 26 9 131 . . . . . Melee 6 | . . . . . . . 6 . . . . . . . Knockbacks 9 | . 1 . 1 . . 1 6 . . . . . . . Impact 2 | . 1 . 1 . . . . . . . . . . . Kinetic 7 | . . . . . . 1 6 . . . . . . . Secondary . | . . . . . . . . . . . . . . . Self-Inflicted Damage 741 | . 97 . 30 119 . 292 53 104 46 . . . . . Shots 24 | . 6 . 1 3 . 8 2 2 2 . . . . . Rammed 22 | . 1 2 7 1 . 4 5 1 1 . . . . . Targets Rammed 26 | . 2 2 8 1 . 5 5 1 2 . . . . . Kicked . | . . . . . . . . . . . . . . . Crushed 4 | . 1 . 1 . . 1 . . 1 . . . . . Highest Temperature 382 | . 22 . 266 145 170 292 343 168 281 382 108 216 189 57 Average Temperature 81 | . 10 . 27 33 86 80 111 53 83 122 65 80 60 21 Received Heat Transfer 3297 | . 51 . 417 18 . 117 1503 243 267 . . 9 336 336 Effects 14 | . . . . . . 1 7 . 4 2 . . . . Energy Bleed 2 | . . . . . . . 2 . . . . . . . Interference 11 | . . . . . . 1 4 . 4 2 . . . . Short Circuit 1 | . . . . . . . 1 . . . . . . . Siege Activations 6 | . . . . . . . . . . 3 . . 2 1 Total Turns 230 | . . . . . . . . . . 95 . . 87 48 Longest Duration 69 | . . . . . . . . . . 49 . . 69 48 Robots Corrupted . | . . . . . . . . . . . . . . . Combat Hostiles . | . . . . . . . . . . . . . . . Parts Fried 8 | . . . . . . . . . . . . . 3 5 Impact Corruptions . | . . . . . . . . . . . . . . . Robots Melted 1 | . . . . . . . . . . . . . 1 . Combat Hostiles 1 | . . . . . . . . . . . . . 1 . Parts Melted 9 | . . . . . . . 2 . . . . . 7 . Heat Transferred 2879 | . . . . . . . 150 250 . 259 111 370 1591 148 Parts Sabotaged . | . . . . . . . . . . . . . . . Parts Stolen . | . . . . . . . . . . . . . . . Parts Stripped . | . . . . . . . . . . . . . . . Power Chain Reactions . | . . . . . . . . . . . . . . . Missiles Intercepted . | . . . . . . . . . . . . . . . Alert | -11 -10 -10 -9 -9 -9 -8 -8 -8 -7 -7 -7 -7 -7 -7 ------- Run | Scr Mat Min Mat Min Exi Min Mat Sto Fac Was Fac Low Low Dat Peak Influence 1046 | . 277 49 597 431 . 400 1023 676 1046 366 147 . . . Initial 395 | . . 49 . 171 . . 161 395 256 366 . . . . Average 344 | . 105 19 353 259 . 170 632 446 559 159 44 . . . Maximum Alert Level 3 | . 1 . 2 2 . 2 3 2 3 1 . . . . Low Security (%) 30 | . 82 100 17 18 . 43 6 . . 59 100 . . . Level 1 30 | . 17 . 34 58 . 53 20 36 26 40 . . . . Level 2 30 | . . . 48 22 . 3 33 63 52 . . . . . Level 3 8 | . . . . . . . 39 . 21 . . . . . Level 4 . | . . . . . . . . . . . . . . . Level 5 . | . . . . . . . . . . . . . . . High Security . | . . . . . . . . . . . . . . . Max Security . | . . . . . . . . . . . . . . . Squads Dispatched 27 | . 1 . 4 . . . 10 4 7 . . . 1 . Investigation 6 | . . . 1 . . . 2 1 1 . . . 1 . Extermination 2 | . . . . . . . . . 2 . . . . . Reinforcement 9 | . 1 . 3 . . . 3 1 1 . . . . . Assault 3 | . . . . . . . 1 2 . . . . . . Garrison 7 | . . . . . . . 4 . 3 . . . . . Intercept . | . . . . . . . . . . . . . . . Construction Impeded 2 | . . . 1 . . . . . 1 . . . . . Haulers Reinforced . | . . . . . . . . . . . . . . . Stealth | -11 -10 -10 -9 -9 -9 -8 -8 -8 -7 -7 -7 -7 -7 -7 --------- Run | Scr Mat Min Mat Min Exi Min Mat Sto Fac Was Fac Low Low Dat Distress Signals 17 | . 1 . 4 . . . 7 3 2 . . . . . Communications Jammed . | . . . . . . . . . . . . . . . Distress Signals . | . . . . . . . . . . . . . . . Times Spotted 265 | . 16 . 56 11 . 22 72 26 19 5 3 9 22 4 Peak Tracking Total 12 | . 3 . 5 4 . 4 10 5 4 3 3 7 12 4 Tactical Retreats 9 | . 1 . 1 . . 5 . . . . . 1 1 . Traps | -11 -10 -10 -9 -9 -9 -8 -8 -8 -7 -7 -7 -7 -7 -7 ------- Run | Scr Mat Min Mat Min Exi Min Mat Sto Fac Was Fac Low Low Dat Traps Triggered 9 | . 1 . 3 . . . . 3 2 . . . . . Indirectly . | . . . . . . . . . . . . . . . Trap Hack Attempts . | . . . . . . . . . . . . . . . Triggered . | . . . . . . . . . . . . . . . Disarmed . | . . . . . . . . . . . . . . . Reprogrammed . | . . . . . . . . . . . . . . . Reused . | . . . . . . . . . . . . . . . Traps Extracted . | . . . . . . . . . . . . . . . Installed . | . . . . . . . . . . . . . . . Triggered . | . . . . . . . . . . . . . . . Machines | -11 -10 -10 -9 -9 -9 -8 -8 -8 -7 -7 -7 -7 -7 -7 ---------- Run | Scr Mat Min Mat Min Exi Min Mat Sto Fac Was Fac Low Low Dat Machines Disabled 39 | . 4 . . 2 . 4 6 5 10 . . 3 4 1 Max in Single Turn 5 | . 1 . . 1 . 2 1 1 5 . . 1 2 1 Machines Sabotaged . | . . . . . . . . . . . . . . . Garrisons Compromised . | . . . . . . . . . . . . . . . Overloaded Fab Kills . | . . . . . . . . . . . . . . . Fab Network Shutdowns 1 | . . . . . . . . . 1 . . . . . Hacking | -11 -10 -10 -9 -9 -9 -8 -8 -8 -7 -7 -7 -7 -7 -7 --------- Run | Scr Mat Min Mat Min Exi Min Mat Sto Fac Was Fac Low Low Dat Machines Accessed 37 | . 3 . 7 1 . . 7 10 3 . . . 2 4 Terminals 23 | . 2 . 5 . . . 5 10 . . . . 1 . Fabricators 2 | . . . . . . . . . 2 . . . . . Repair Stations 1 | . . . 1 . . . . . . . . . . . Recycling Units 1 | . 1 . . . . . . . . . . . . . Scanalyzers 3 | . . . 1 . . . 1 . 1 . . . . . Garrison Access 1 | . . . . . . . 1 . . . . . . . Total Hacks 125 | . 5 . 24 1 . . 24 32 5 . . . 8 26 Successful 82 | . 3 . 16 1 . . 12 14 2 . . . 8 26 Failed 43 | . 2 . 8 . . . 12 18 3 . . . . . Catastrophic 12 | . . . 3 . . . 1 7 1 . . . . . Database Lockouts . | . . . . . . . . . . . . . . . Manual 53 | . 2 . 14 . . . 12 25 . . . . . . Terminals 74 | . 2 . 17 . . . 16 32 . . . . 7 . Fabricators 3 | . . . . . . . . . 3 . . . . . Repair Stations 3 | . . . 3 . . . . . . . . . . . Recycling Units 3 | . 3 . . . . . . . . . . . . . Scanalyzers 13 | . . . 4 . . . 7 . 2 . . . . . Garrison Access 1 | . . . . . . . 1 . . . . . . . Terminal Hacks 56 | . 1 . 8 1 . . 4 8 . . . . 8 26 Record 18 | . . . . . . . . . . . . . 7 11 Part Schematic 7 | . . . . . . . . . . . . . . 7 Robot Schematic 5 | . . . . . . . . . . . . . . 5 Robot Analysis 3 | . 1 . 1 . . . 1 . . . . . . . Prototype ID Bank 4 | . . . . . . . 1 . . . . . . 3 Open Door 5 | . . . . 1 . . . 3 . . . . 1 . Branch Access Points 2 | . . . 1 . . . 1 . . . . . . . Terminal Index 2 | . . . 1 . . . . 1 . . . . . . Scanalyzer Index 1 | . . . . . . . . 1 . . . . . . Alert Level 3 | . . . 1 . . . 1 1 . . . . . . Unreport Threat 3 | . . . 2 . . . . 1 . . . . . . Locate Traps 1 | . . . . . . . . 1 . . . . . . Hauler Manifests 1 | . . . 1 . . . . . . . . . . . Zone Layout 1 | . . . 1 . . . . . . . . . . . Fabricator Hacks 2 | . . . . . . . . . 2 . . . . . Load Schematic 1 | . . . . . . . . . 1 . . . . . Build 1 | . . . . . . . . . 1 . . . . . Repair Station Hacks 2 | . . . 2 . . . . . . . . . . . Scan Component 1 | . . . 1 . . . . . . . . . . . Repair 1 | . . . 1 . . . . . . . . . . . Recycling Unit Hacks 2 | . 2 . . . . . . . . . . . . . Process 1 | . 1 . . . . . . . . . . . . . Retrieve Matter 1 | . 1 . . . . . . . . . . . . . Scanalyzer 10 | . . . 3 . . . 7 . . . . . . . Insert Component 5 | . . . 2 . . . 3 . . . . . . . Analyze 5 | . . . 1 . . . 4 . . . . . . . Garrison Access Hacks 1 | . . . . . . . 1 . . . . . . . Unlock Access 1 | . . . . . . . 1 . . . . . . . Unauthorized Hacks 9 | . . . 3 . . . . 6 . . . . . . Terminals 9 | . . . 3 . . . . 6 . . . . . . Track 4 | . . . 2 . . . . 2 . . . . . . Assimilate 1 | . . . . . . . . 1 . . . . . . Botnet 4 | . . . 1 . . . . 3 . . . . . . Fabricators . | . . . . . . . . . . . . . . . Repair Stations . | . . . . . . . . . . . . . . . Recycling Units . | . . . . . . . . . . . . . . . Scanalyzers . | . . . . . . . . . . . . . . . Garrison Access . | . . . . . . . . . . . . . . . Data Cores Recovered . | . . . . . . . . . . . . . . . Used . | . . . . . . . . . . . . . . . Hacking Detections 26 | . 2 . 5 . . . 6 9 3 . . . 1 . Full Trace Events 8 | . . . 4 . . . 2 1 . . . . 1 . Feedback Events . | . . . . . . . . . . . . . . . Feedback Blocked . | . . . . . . . . . . . . . . . Robot Schematics Acquired 5 | . . . . . . . . . . . . . . 5 Robots Built . | . . . . . . . . . . . . . . . Matter . | . . . . . . . . . . . . . . . Time . | . . . . . . . . . . . . . . . Total Robot Build Rating . | . . . . . . . . . . . . . . . Part Schematics Acquired 10 | . . . . . . . 3 . . . . . . 7 Parts Built 1 | . . . . . . . . . 1 . . . . . Matter 168 | . . . . . . . . . 168 . . . . . Time 84 | . . . . . . . . . 84 . . . . . Total Part Build Rating 4 | . . . . . . . . . 4 . . . . . Parts Repaired 1 | . . . 1 . . . . . . . . . . . Time 100 | . . . 100 . . . . . . . . . . . Parts Recycled . | . . . . . . . . . . . . . . . Recycled Matter 129 | . 129 . . . . . . . . . . . . . Retrieved Matter 145 | . 145 . . . . . . . . . . . . . Retrieved Components . | . . . . . . . . . . . . . . . Parts Scanalyzed 4 | . . . 1 . . . 3 . . . . . . . Part Schematics Acquired 3 | . . . . . . . 3 . . . . . . . Parts Damaged . | . . . . . . . . . . . . . . . Bothacking | -11 -10 -10 -9 -9 -9 -8 -8 -8 -7 -7 -7 -7 -7 -7 ------------ Run | Scr Mat Min Mat Min Exi Min Mat Sto Fac Was Fac Low Low Dat Used RIF Installer . | . . . . . . . . . . . . . . . Robots Hacked . | . . . . . . . . . . . . . . . Non-combat . | . . . . . . . . . . . . . . . Combat . | . . . . . . . . . . . . . . . Robot Hacks Applied . | . . . . . . . . . . . . . . . Relay Couplers Released . | . . . . . . . . . . . . . . . Robots Rewired . | . . . . . . . . . . . . . . . Allies Hacked . | . . . . . . . . . . . . . . . Hacks Repelled . | . . . . . . . . . . . . . . . Allies | -11 -10 -10 -9 -9 -9 -8 -8 -8 -7 -7 -7 -7 -7 -7 -------- Run | Scr Mat Min Mat Min Exi Min Mat Sto Fac Was Fac Low Low Dat Total Allies 21 | . . . . . . . . 3 . 18 . . . . Largest Group 18 | . . . . . . . . 2 2 18 17 10 5 1 Highest-Rated Group 446 | . . . . . . . . 62 62 446 432 296 145 33 Highest-Rated Ally 35 | . . . . . . . . 31 31 35 35 35 33 33 Total Orders . | . . . . . . . . . . . . . . . Ally Attacks 84 | . . . . . . . . . 2 30 20 29 3 . Total Damage 2501 | . . . . . . . . . 51 1059 684 694 13 . Kills 15 | . . . . . . . . . . 2 6 7 . . Allies Corrupted . | . . . . . . . . . . . . . . . Allies Melted . | . . . . . . . . . . . . . . . Intel | -11 -10 -10 -9 -9 -9 -8 -8 -8 -7 -7 -7 -7 -7 -7 ------- Run | Scr Mat Min Mat Min Exi Min Mat Sto Fac Was Fac Low Low Dat Robot Analysis Total 3 | . 1 . 1 . . . 1 . . . . . . . Derelict Logs Recovered 6 | . . 1 . 2 . . . . . . . 1 2 . Drone Launches . | . . . . . . . . . . . . . . . Drone Recoveries . | . . . . . . . . . . . . . . . Exploration | -11 -10 -10 -9 -9 -9 -8 -8 -8 -7 -7 -7 -7 -7 -7 ------------- Run | Scr Mat Min Mat Min Exi Min Mat Sto Fac Was Fac Low Low Dat Turns Passed 14495 | . 734 988 1945 985 712 658 1768 1251 1141 983 71 1105 1950 204 Spaces Moved 6991 | 1 394 454 824 519 396 331 738 545 508 521 40 674 966 80 Core 55 | . . . . . . . . . . 42 . . . 13 Treads 6918 | . 380 454 824 519 396 331 738 545 508 479 40 674 966 64 Legs 18 | 1 14 . . . . . . . . . . . . 3 Wheels . | . . . . . . . . . . . . . . . Hover . | . . . . . . . . . . . . . . . Flight . | . . . . . . . . . . . . . . . Fastest Speed 50 | 120 120 180 180 180 180 180 180 180 180 50 160 160 160 50 Average Speed 175 | 120 161 180 180 180 180 180 186 180 182 152 160 160 177 156 Slowest Speed 220 | 120 180 180 180 180 180 180 220 200 200 180 160 160 180 180 Overloaded Moves . | . . . . . . . . . . . . . . . Propulsion Burnouts . | . . . . . . . . . . . . . . . Robots Hopped . | . . . . . . . . . . . . . . . Cave-ins Triggered . | . . . . . . . . . . . . . . . Exploration Rate (%) 67 | 2 75 86 70 93 88 77 74 82 19 96 3 84 92 77 Regions Visited 14 Branch Regions 8 Pre-discovered Areas 7 | . . 1 . 2 . . . . . . . 1 2 1 Known Exits Taken 3 | . . . 1 . . . 1 1 . . . . . . Unknown Exits Taken 9 | 1 1 1 . 1 1 1 . . . . 1 1 1 . Scrap Searched 10 | . . 1 . 2 . . . . . . . 4 3 . Spaces Dug 99 | . 17 . 7 18 . 36 12 9 . . . . . . Terrain Destroyed 584 | . 124 . 33 67 . 160 141 17 40 . 1 . 1 . Melee . | . . . . . . . . . . . . . . . Projectile 8 | . . . . . . 1 3 2 . . 1 . 1 . AOE 576 | . 124 . 33 67 . 159 138 15 40 . . . . . Terrain Rammed . | . . . . . . . . . . . . . . . Walls Destroyed . | . . . . . . . . . . . . . . . Machines Disabled . | . . . . . . . . . . . . . . . Actions | -11 -10 -10 -9 -9 -9 -8 -8 -8 -7 -7 -7 -7 -7 -7 --------- Run | Scr Mat Min Mat Min Exi Min Mat Sto Fac Was Fac Low Low Dat Total 8270 | . 464 625 1039 551 395 359 911 699 608 649 45 689 1112 124 Wait 352 | . . 166 12 . . . 9 15 7 26 5 7 90 15 Move 6978 | . 393 453 823 518 395 330 737 544 508 520 39 673 965 80 Hop . | . . . . . . . . . . . . . . . Pick Up 110 | . 20 2 19 5 . . 13 18 16 11 . 2 4 . Fast Attach 54 | . 3 . 4 . . . 4 15 4 17 . . 3 4 Attach 44 | . 4 . 7 2 . 2 8 5 3 7 . . 2 4 Detach 2 | . . . . . . . . 2 . . . . . . Swap 79 | . 1 . 15 7 . 1 15 20 11 2 . . 4 3 Drop 108 | . 11 2 21 6 . . 14 23 11 14 . 2 4 . Fire 500 | . 30 . 130 12 . 21 97 48 46 52 1 5 40 18 Melee 17 | . . . . . . . 9 8 . . . . . . Ram . | . . . . . . . . . . . . . . . Kick . | . . . . . . . . . . . . . . . Crush 26 | . 2 2 8 1 . 5 5 1 2 . . . . . Escape Stasis . | . . . . . . . . . . . . . . . Rewire . | . . . . . . . . . . . . . . . Trap . | . . . . . . . . . . . . . . . Miscellaneous . | . . . . . . . . . . . . . . . Route ------- -11/Scrapyard -10/Materials (discovered 3 exits: *Mat x2 / [*Min]) -10/Mines (discovered 2 exits: *Mat x2) -9/Materials (discovered 2 exits: *Mat / *Min) -9/Mines (discovered 2 exits: *Mat / [*Exi]) -9/Exiles -8/Mines (discovered 2 exits: *Mat x2) -8/Materials (discovered 5 exits: *Fac x2 / *Sto x2 / Gar) -8/Storage -7/Factory -7/Waste -7/Factory -7/Lower Caves -7/Lower Caves (discovered 2 exits: [*Fac] / *Dat) -7/Data Miner (discovered 1 exit: [*Pro]) History --------- Turn | Location | Event 1 | -11/Scrapyard | Discovered new exit (range 0) 1 | -11/Scrapyard | Entered Materials 277 | -10/Materials | Discovered new exit (range 7) 317 | -10/Materials | Build established: Mutant 402 | -10/Materials | Discovered new exit (range 16) 710 | -10/Materials | Discovered new exit (range 9) 735 | -10/Materials | Entered Mines 738 | -10/Mines | Met a Derelict bent on vengeance 757 | -10/Mines | Learned location of Mines (-9) 855 | -10/Mines | Assembled infested the area 1148 | -10/Mines | Discovered new exit (range 12) 1272 | -10/Mines | Found a damaged Exp. Sensor Array with a note attached 1276 | -10/Mines | Found Prototype Device 1502 | -10/Mines | Received a Rocket Launcher from a helpful Derelict 1666 | -10/Mines | Discovered new exit (range 6) 1723 | -10/Mines | Entered Materials 1723 | -9/Materials | Evolved 2 slots: Utility x2 1723 | -9/Materials | Identified Exp. Sensor Array 1969 | -9/Materials | Discovered new exit (range 16) 2225 | -9/Materials | Identified exit to Mines 2813 | -9/Materials | Repaired Broken Exp. Sensor Array 2940 | -9/Materials | Build established: Scavenger-Mutant 3032 | -9/Materials | Discovered new exit (range 13) 3668 | -9/Materials | Entered Mines 3803 | -9/Mines | Learned location of 1 exit from Materials 3924 | -9/Mines | Deemed a non-threat by the Exiles lab entrance 3926 | -9/Mines | Discovered new exit (range 5) 4145 | -9/Mines | A weapon hastily lodged in a ceiling crevice suddenly fell to the ground 4277 | -9/Mines | Discovered new exit (range 9) 4317 | -9/Mines | Met a Derelict who couldn't figure out how to use a Trap Extractor 4458 | -9/Mines | Learned location of Storage (-8) 4503 | -9/Mines | Joined a pair of Derelicts in attacking an 0b10 outpost 4641 | -9/Mines | Build established: Mutant 4653 | -9/Mines | Entered Exiles 4653 | -9/Exiles | Found Exiles lab abandoned 5343 | -9/Exiles | Discovered new exit (range 14) 5365 | -9/Exiles | Entered Mines 5554 | -8/Mines | Discovered new exit (range 4) 5951 | -8/Mines | Discovered new exit (range 14) 5955 | -8/Mines | Core integrity fell below 50% 6023 | -8/Mines | Entered Materials 6023 | -8/Materials | Evolved 2 slots: Weapon x2 6024 | -8/Materials | Identified exit to Factory 6386 | -8/Materials | Discovered new exit (range 16) 6422 | -8/Materials | Discovered exit to Factory (range 16) 6559 | -8/Materials | Build established: Scavenger-Tank 6643 | -8/Materials | Garrison activated, responded to threat 6936 | -8/Materials | Identified exit to Garrison 7143 | -8/Materials | Destroyed 7 combat bots 7225 | -8/Materials | Identified exit to Storage 7623 | -8/Materials | First assault squad dispatched 7708 | -8/Materials | Garrison activated, responded to threat 7791 | -8/Materials | Entered Storage 7814 | -8/Storage | Lost 6 parts (1p1n1u3w) 8072 | -8/Storage | Build established: Mutant 8402 | -8/Storage | Build established: Tank 8858 | -8/Storage | Core integrity fell below 50% 9002 | -8/Storage | Discovered exit to Factory (range 6) 9013 | -8/Storage | Met a pair of Derelict thieves 9042 | -8/Storage | Entered Factory 9042 | -7/Factory | Accompanied by 2 allies 9042 | -7/Factory | Evolved 2 slots: Utility x2 9538 | -7/Factory | Build established: Scavenger-Tank 9829 | -7/Factory | Fabricated Med. Reactive Plating (x1) 9942 | -7/Factory | Local fabrication network quarantined 9981 | -7/Factory | Garrison activated, responded to threat 10055 | -7/Factory | Discovered new exit (range 13) 10183 | -7/Factory | Sucked down chute 10183 | -7/Factory | Entered Waste 10200 | -7/Waste | Spotted C-40 Crusher 10203 | -7/Waste | Destroyed C-40 Crusher 10239 | -7/Waste | Found Damper Plating 10243 | -7/Waste | Found Damper Plating 10249 | -7/Waste | Spotted C-40 Crusher 10260 | -7/Waste | Destroyed C-40 Crusher 10274 | -7/Waste | Crushed by Compactor (1 part destroyed, 2 dropped) 10277 | -7/Waste | Crushed by Compactor (1 part destroyed, 2 dropped) 10286 | -7/Waste | Destroyed C-40 Crusher 10293 | -7/Waste | Crushed by Compactor (0 parts destroyed, 1 dropped) 10302 | -7/Waste | Crushed by Compactor (1 part destroyed, 1 dropped) 10304 | -7/Waste | Destroyed C-40 Crusher 10315 | -7/Waste | Spotted C-40 Crusher 10324 | -7/Waste | Crushed by Compactor (1 part destroyed) 10348 | -7/Waste | Crushed by Compactor (1 part destroyed) 10351 | -7/Waste | Crushed by Compactor (1 part destroyed) 10354 | -7/Waste | Spotted C-40 Crusher 10369 | -7/Waste | Crushed by Compactor (0 parts destroyed, 1 dropped) 10372 | -7/Waste | Crushed by Compactor (1 part destroyed) 10390 | -7/Waste | Crushed by Compactor (0 parts destroyed, 1 dropped) 10403 | -7/Waste | Lost 7 parts (1p1u5w) 10408 | -7/Waste | Crushed by Compactor (1 part destroyed, 1 dropped) 10429 | -7/Waste | Warlord forces began an assault 10439 | -7/Waste | Lost 3 parts (1n1u1w) 10459 | -7/Waste | Allies destroyed C-40 Crusher 10460 | -7/Waste | Destroyed C-40 Crusher 10620 | -7/Waste | Discovered new exit (range 12) 10698 | -7/Waste | Build established: Derelict-Gunner 11070 | -7/Waste | Build established: Scavenger-Tank 11166 | -7/Waste | Entered Factory 11166 | -7/Factory | Accompanied by 17 allies 11206 | -7/Factory | Discovered new exit (range 12) 11237 | -7/Factory | Entered Lower Caves 11237 | -7/Lower Caves | Accompanied by 10 allies 11249 | -7/Lower Caves | Attracted the attention of an 0b10 checkpoint 12033 | -7/Lower Caves | Attracted the attention of an 0b10 base 12164 | -7/Lower Caves | Discovered new exit (range 12) 12342 | -7/Lower Caves | Entered another Lower Caves area 12342 | -7/Lower Caves | Accompanied by 5 allies 12343 | -7/Lower Caves | Encountered a Warlord checkpoint 12606 | -7/Lower Caves | Destroyed 12 combat bots 12619 | -7/Lower Caves | Learned Factory terminal intel 12619 | -7/Lower Caves | Learned Extension terminal intel 12619 | -7/Lower Caves | Learned Armory garrison access intel 12648 | -7/Lower Caves | Attracted the attention of an 0b10 base 12973 | -7/Lower Caves | Learned location of Zion (-6) 12978 | -7/Lower Caves | Discovered new exit (range 10) 13124 | -7/Lower Caves | Spotted B-75 Beast 13391 | -7/Lower Caves | Learned location of Extension (-4) 13654 | -7/Lower Caves | Destroyed B-75 Beast 13909 | -7/Lower Caves | Discovered new exit (range 9) 13962 | -7/Lower Caves | Attracted the attention of an 0b10 checkpoint 14159 | -7/Lower Caves | Build established: Derelict-Tank 14292 | -7/Lower Caves | Entered Data Miner 14292 | -7/Data Miner | Accompanied by 1 ally 14292 | -7/Data Miner | Discovered new exit (range 6) 14327 | -7/Data Miner | Met Data Miner 14377 | -7/Data Miner | Learned location of Section 7 (-2) 14377 | -7/Data Miner | Acquired the access code to Warlord's prototype stash 14395 | -7/Data Miner | Received God Mode back door access code from Data Miner 14418 | -7/Data Miner | Data Conduit disabled 14472 | -7/Data Miner | Core integrity fell below 50% 14486 | -7/Data Miner | Core integrity fell below 20% 14496 | -7/Data Miner | Destroyed by Enhanced Grunt with Neutron Cannon Last Messages --------------- 14456_ Switching to secondary target: Enhanced Grunt. 14459_ Enhanced Grunt suffers critical hit. 14460_ Hvy. Treads destroyed. 14460_ Med. Reactive Plating destroyed. 14462_ Flak Gun destroyed. 14464_ Barrage Gun destroyed. 14466_ Hvy. Battle Rifle destroyed. 14467_ Adv. Heat Sink fried. 14467_ Prototype Device fried. 14467_ Enhanced Grunt destroyed. 14477_ Barrage Gun destroyed. 14477_ Beamcaster destroyed. 14477_ Imp. Cooling System destroyed. 14483_ Acquired Prototype Leg. 14483_ Identified Enh. Flexi-carbon Leg. 14486_ Acquired Enh. Flexi-carbon Leg. 14488_ Acquired Neutron Cannon. 14495_ Neutron Cannon destroyed. 14495_ Enh. Flexi-carbon Leg destroyed. 14496_ Acquired Antimatter Reactor. Map ----- +----------------------------------------------------+ | | | | | | | | | | | | | | | | | | | | | | | | | | | | | | | ???????????????????????????????????????????????? | | ???????????????????????????????????????????????? | | ???????????????????????????????????????????????? | | ???????????????????????????????????????????????? | | ?????????????????????????????????????####??????? | | ??????###############??????#???????### #??????? | | ?????"""""""""""""" ###### #?#????## #??????? | | ????"""""""" " # # # # ## < ##??????? | | ???"""""""" ! = ######?? | | ???""""""" g% ! #?? | | ???"""" !!!%@ #?? | | ???""""" !g #?? | | ???""""" ] ##?? | | ???""""" %! "" """"""""""#####??? | | ????"""" "" "###############??????? | | ????"""""" """""###????????????????????? | | ????#"""""" " "#####??????????????????????? | | ????########"## "#??????????????????????????? | | ???????????#"### "#??????????????????????????? | | ???????????#"### "#??????????????????????????? | | ???????????#"## "#??????????????????????????? | | ???????????#"## "#??????????????????????????? | | ?????????????# "#??????????????????????????? | | ?????????????### "#??????????????????????????? | | ???????????????# "##?????????????????????????? | | ??????????????## ""#?????????????????????????? | | ???????????#?## ""#?????????????????????????? | | ?????????"##"#"X ""#?????????????????????????? | | ?????????"""""" "####??????????????????????? | | ?????????#""""" X"""""??????????????????????? | | ?????????###"#"X "##"#??????????????????????? | | ???????????#?## X""""#??????????????????????? | | ??????????????## "##"#??????????????????????? | | ???????????????#######?????????????????????????? | | ???????????????????????????????????????????????? | +----------------------------------------------------+ Best States ------------- Heat Dissipation 88 Coolant Potential 65 Energy Generation 21 Energy Capacity 325 Matter Stores 300 Matter Capacity 300 Sight Range 16 Terrain Scan Density 10 Armor Coverage 2400 Resistance: KI 30 Resistance: EM 90 Propulsion Shielding 66 Evasion (%) 50 Target Analysis 5 Armor Integrity Analysis 33 Recoil Reduction 2 Salvage Targeting 1 Offensive Hacking 14 Item Schematics ----------------- Med. Reactive Plating | -8/Materials | Scanalyzed Salvage Targeting Computer | -8/Materials | Scanalyzed Battle Cannon | -8/Materials | Scanalyzed Combat Drone Bay | -7/Data Miner | Free Lgt. Regenerative Plating | -7/Data Miner | Free Cmb. Gravmag System | -7/Data Miner | Free Triangulator | -7/Data Miner | Free Exp. Terrain Scanner | -7/Data Miner | Free Exp. Targeting Computer | -7/Data Miner | Free Kinetic Spear | -7/Data Miner | Free Robot Schematics ------------------ S-27 Virus | -7/Data Miner | Free G-50 Soldier | -7/Data Miner | Free P-70 Sage | -7/Data Miner | Free I-36 Angel | -7/Data Miner | Free I-47 Archangel | -7/Data Miner | Free Fabricated ------------ Med. Reactive Plating | x1 | -7/Factory Alien Tech Used ----------------- None Achievements -------------- None Challenges ------------ None Game ------ Seed LegDeuteriumScythe Manual? 0 Play Time 01:13:07 Cumulative 270.0 hours Start 2021.01.23 @ 13:23:33 End 2021.01.23 @ 14:42:24 Sessions 1 Manual Loads 0 Difficulty Rogue Special Mode None Game No. 229 Rogue 222 Adventurer 0 Explorer 7 Win Type - Total 7 Types 2/0/5/0/0/0/0/0/0 Lore% 74 Gallery% 91 Achievement% 71 Wizard Run 0 Options --------- ASCII 0 Keyboard 0 Movement Mouse Keybinds 0 Fullscreen 1 Font 18/X11 Map View 76x50 Tactical HUD 1 Map Filters NONE Filters NONE Steam 1 RUN: fa8d069a-b563-4ef0-9019-3af7463bf47c